[Event "3rd VIZAG GM-Open 2022"]
[Site "Visakapatnam"]
[Date "2022.06.14"]
[Round "7.6"]
[White "Mirzoev, Azer"]
[Black "Aradhya, Garg"]
[Result "1-0"]
[ECO "D96"]
[WhiteElo "2476"]
[BlackElo "2275"]
[Annotator "RC"]
[PlyCount "161"]
[EventDate "2022.06.13"]
[EventType "swiss"]
[EventCountry "IND"]
[SourceTitle "playchess.com"]
[Source "ChessBase"]
[SourceQuality "1"]
[TimeControl "5400+30"]

1. d4 {[%emt 0:00:04]} d5 {[%emt 0:00:01]} 2. Nf3 {[%emt 0:00:08]} Nf6 {[%emt 0:00:05]} 3. c4 {[%emt 0:00:07]} c6 {[%emt 0:02:56]} 4. Qb3 {[%emt 0:01:51]} g6 {[%emt 0:03:04]} 5. Nc3 {[%emt 0:01:15]} Bg7 {[%emt 0:02:18]} 6. cxd5 {[%emt 0:00:09]} cxd5 {[%emt 0:00:25]} 7. Bg5 {[%emt 0:00:07]} Nc6 {[%emt 0:02:34]} 8. e3 {[%emt 0:00:14]} e6 {[%emt 0:03:56]} 9. Qa3 {[%emt 0:04:13]} h6 {[%emt 0:00:55]} 10. Bh4 {[%emt 0:00:15]} Qe7 {[%emt 0:06:02]} 11. Qxe7+ {[%emt 0:00:35]} Kxe7 {[%emt 0:00:03]} 12. Ne5 {[%emt 0:02:51]} g5 {[%emt 0:01:36]} 13. Nxc6+ {[%emt 0:03:38]} bxc6 {[%emt 0:00:02]} 14. Bg3 {[%emt 0:00:12]} Nd7 {[%emt 0:01:30]} 15. Rc1 {[%emt 0:00:20]} e5 {[%emt 0:00:48]} 16. dxe5 {[%emt 0:00:45]} Bxe5 {[%emt 0:00:44]} 17. Be2 {[%emt 0:02:41]} h5 {[%emt 0:06:12]} 18. f3 {[%emt 0:08:08]} h4 {[%emt 0:06:57]} 19. Bxe5 {[%emt 0:00:16]} Nxe5 {[%emt 0:00:03]} 20. Kf2 {[%emt 0:00:25]} Be6 {[%emt 0:02:07]} 21. Rhd1 {[%emt 0:00:16]} f5 {[%emt 0:05:31]} 22. Na4 {[%emt 0:03:59]} f4 {[%emt 0:01:02]} 23. Nc5 {[%emt 0:02:12]} Raf8 {[%emt 0:02:56]} 24. Rd4 {[%emt 0:03:13]} Rf7 {[%emt 0:06:43]} 25. e4 {[%emt 0:10:11]} g4 {[%emt 0:03:43]} 26. fxg4 {[%emt 0:07:59]} f3 {[%emt 0:06:19]} 27. gxf3 {[%emt 0:02:01]} Bxg4 {[%emt 0:03:13]} 28. exd5 {[%emt 0:06:05]} cxd5 {[%emt 0:00:29]} 29. Nd3 {[%emt 0:06:52]} Nxf3 {[%emt 0:01:53]} 30. Rxg4 {[%emt 0:11:30]} Ne5+ {[%emt 0:00:30]} 31. Ke3 {[%emt 0:00:08]} Nxg4+ {[%emt 0:00:05]} 32. Bxg4 {[%emt 0:00:06]} Kd6 {[%emt 0:00:38]} 33. h3 {[%emt 0:00:15]} Re7+ {[%emt 0:05:27]} 34. Kd2 {[%emt 0:00:35]} Rf8 {[%emt 0:00:10]} 35. Rc3 {[%emt 0:02:28]} Rc7 {[%emt 0:02:00]} 36. Ra3 {[%emt 0:00:27]} Rb8 {[%emt 0:00:10]} 37. Ra4 {[%emt 0:02:00]} Rbb7 {[%emt 0:02:33]} 38. b3 {[%emt 0:01:29]} Rf7 {[%emt 0:02:26]} 39. Be2 {[%emt 0:01:10]} Rh7 {[%emt 0:00:27]} 40. Ne1 {[%emt 0:02:05]} Rbg7 {[%emt 0:02:06]} 41. Ra6+ {[%emt 0:02:34]} Kc7 {[%emt 0:05:17]} 42. Rxa7+ {[%emt 0:01:17]} Kb8 {[%emt 0:00:03]} 43. Rxg7 {[%emt 0:01:54]} Rxg7 {[%emt 0:00:02]} 44. Bg4 {[%emt 0:00:14]} Kc7 {[%emt 0:01:21]} 45. a4 {[%emt 0:00:11]} Kd6 {[%emt 0:01:36]} 46. b4 {[%emt 0:00:10]} Rf7 {[%emt 0:00:57]} 47. a5 {[%emt 0:01:27]} Rf1 {[%emt 0:03:06]} 48. Nc2 {[%emt 0:01:01]} Rf4 {[%emt 0:01:20]} 49. Be2 {[%emt 0:01:06]} Rf2 {[%emt 0:01:17]} 50. a6 {[%emt 0:02:18]} Kc7 {[%emt 0:01:06]} 51. Ne3 {[%emt 0:01:39]} d4 {[%emt 0:00:57]} 52. Nd5+ {[%emt 0:00:32]} Kc6 {[%emt 0:00:08]} 53. Ne7+ {[%emt 0:01:00]} Kc7 {[%emt 0:03:04]} 54. b5 {[%emt 0:01:11]} Rf7 {[%emt 0:01:27]} 55. Nd5+ {[%emt 0:00:36]} Kd6 {[%emt 0:00:06]} 56. b6 {[%emt 0:01:26]} Kc6 {[%emt 0:00:20]} 57. a7 {[%emt 0:00:57]} Rf8 {[%emt 0:00:05]} 58. Nc7 {[%emt 0:00:31]} Kb7 {[%emt 0:00:21]} 59. a8=Q+ {[%emt 0:06:41]} Rxa8 {[%emt 0:00:02]} 60. Bf3+ {[%emt 0:00:00]} Kxb6 {[%emt 0:00:07]} 61. Nxa8+ {[%emt 0:00:00]} Kb5 {[%emt 0:00:10]} 62. Kd3 {[%emt 0:00:00]} Kc5 {[%emt 0:00:03]} 63. Nc7 {[%emt 0:00:00]} Kd6 {[%emt 0:00:03]} 64. Nb5+ {[%emt 0:00:00]} Ke5 {[%emt 0:00:04]} 65. Nxd4 {[%emt 0:00:00]} Kf4 {[%emt 0:00:02]} 66. Bg4 {[%emt 0:00:00]} Kg5 {[%emt 0:00:05]} 67. Ke4 {[%emt 0:00:00]} Kf6 {[%emt 0:00:03]} 68. Nf3 {[%emt 0:00:00]} Kg6 {[%emt 0:00:03]} 69. Nxh4+ {[%emt 0:00:00]} Kg5 {[%emt 0:00:02]} 70. Nf3+ {[%emt 0:00:00]} Kf6 {[%emt 0:00:04]} 71. h4 {[%emt 0:00:00]} Kg7 {[%emt 0:00:06]} 72. Kf4 {[%emt 0:00:00]} Kf6 {[%emt 0:00:05]} 73. Nd2 {[%emt 0:00:00]} Kg6 {[%emt 0:00:05]} 74. Ne4 {[%emt 0:00:00]} Kh6 {[%emt 0:00:04]} 75. Ng3 {[%emt 0:00:00]} Kg6 {[%emt 0:00:04]} 76. Nf5 {[%emt 0:00:00]} Kf6 {[%emt 0:00:03]} 77. h5 {[%emt 0:00:00]} Kf7 {[%emt 0:00:02]} 78. Kg5 {[%emt 0:00:00]} Kg8 {[%emt 0:00:05]} 79. Kg6 {[%emt 0:00:00]} Kh8 {[%emt 0:00:03]} 80. h6 {[%emt 0:00:00]} Kg8 {[%emt 0:00:03]} 81. Nd6 {[%emt 0:00:00]} 1-0

[Event "3rd VIZAG GM-Open 2022"]
[Site "Visakapatnam"]
[Date "2022.06.14"]
[Round "7.7"]
[White "Abdyjapar, Asyl"]
[Black "Neelotpal, Das"]
[Result "0-1"]
[ECO "E46"]
[WhiteElo "2346"]
[BlackElo "2431"]
[Annotator "RC"]
[PlyCount "56"]
[EventDate "2022.06.13"]
[EventType "swiss"]
[EventCountry "IND"]
[SourceTitle "playchess.com"]
[Source "ChessBase"]
[SourceQuality "1"]
[TimeControl "5400+30"]

1. d4 {[%emt 0:00:01]} Nf6 {[%emt 0:01:25]} 2. c4 {[%emt 0:00:05]} e6 {[%emt 0:00:03]} 3. Nc3 {[%emt 0:00:04]} Bb4 {[%emt 0:00:04]} 4. e3 {[%emt 0:00:03]} O-O {[%emt 0:00:27]} 5. Nge2 {[%emt 0:00:02]} c6 {[%emt 0:02:07]} 6. a3 {[%emt 0:00:22]} Be7 {[%emt 0:03:46]} 7. Nf4 {[%emt 0:01:18]} d5 {[%emt 0:00:35]} 8. cxd5 {[%emt 0:00:09]} Nxd5 {[%emt 0:02:31]} 9. e4 {[%emt 0:04:58]} Nxc3 {[%emt 0:01:04]} 10. bxc3 {[%emt 0:00:03]} c5 {[%emt 0:00:27]} 11. d5 {[%emt 0:02:53]} Bf6 {[%emt 0:01:05]} 12. Bd2 {[%emt 0:00:22]} exd5 {[%emt 0:02:42]} 13. exd5 {[%emt 0:01:02]} Re8+ {[%emt 0:04:22]} 14. Be2 {[%emt 0:00:04]} Bg4 {[%emt 0:08:30]} 15. f3 {[%emt 0:00:19]} Bh4+ {[%emt 0:00:47]} 16. Kf1 {[%emt 0:02:26]} Bf5 {[%emt 0:03:48]} 17. g3 {[%emt 0:03:41]} Bf6 {[%emt 0:06:26]} 18. h4 {[%emt 0:04:39]} Be5 {[%emt 0:07:16]} 19. g4 {[%emt 0:06:46]} Bxg4 {[%emt 0:07:13]} 20. fxg4 {[%emt 0:05:46]} Bxf4 {[%emt 0:00:34]} 21. Bxf4 {[%emt 0:00:05]} Qf6 {[%emt 0:00:11]} 22. Qa4 {[%emt 0:00:45]} Nd7 {[%emt 0:01:52]} 23. Rh3 {[%emt 0:09:12]} Nb6 {[%emt 0:02:30]} 24. Qxe8+ {[%emt 0:04:21]} Rxe8 {[%emt 0:00:10]} 25. Rf3 {[%emt 0:00:00]} Nxd5 {[%emt 0:05:53]} 26. Bg3 {[%emt 0:00:12]} Qe6 {[%emt 0:02:58]} 27. Re1 {[%emt 0:00:05]} Qxg4 {[%emt 0:01:17]} 28. Kf2 {[%emt 0:00:05]} Nxc3 {[%emt 0:07:03]} 0-1

[Event "3rd VIZAG GM-Open 2022"]
[Site "Visakapatnam"]
[Date "2022.06.14"]
[Round "7.8"]
[White "Azaladze, Shota"]
[Black "Ilamparthi A R"]
[Result "0-1"]
[ECO "B06"]
[WhiteElo "2420"]
[BlackElo "2121"]
[Annotator "RC"]
[PlyCount "64"]
[EventDate "2022.06.13"]
[EventType "swiss"]
[EventCountry "IND"]
[SourceTitle "playchess.com"]
[Source "ChessBase"]
[SourceQuality "1"]
[TimeControl "5400+30"]

1. g3 {[%emt 0:00:02]} Nf6 {[%emt 0:00:10]} 2. Bg2 {[%emt 0:00:04]} g6 {[%emt 0:00:15]} 3. e4 {[%emt 0:00:05]} d6 {[%emt 0:00:03]} 4. d4 {[%emt 0:00:05]} Bg7 {[%emt 0:00:05]} 5. Nc3 {[%emt 0:00:05]} O-O {[%emt 0:02:17]} 6. Nge2 {[%emt 0:00:04]} e5 {[%emt 0:00:49]} 7. h3 {[%emt 0:00:30]} exd4 {[%emt 0:03:34]} 8. Nxd4 {[%emt 0:00:10]} Re8 {[%emt 0:00:06]} 9. O-O {[%emt 0:01:26]} Nc6 {[%emt 0:00:57]} 10. Be3 {[%emt 0:06:05]} Ne5 {[%emt 0:06:52]} 11. Re1 {[%emt 0:07:34]} Nc4 {[%emt 0:04:57]} 12. Bc1 {[%emt 0:00:31]} c5 {[%emt 0:06:59]} 13. Nde2 {[%emt 0:04:46]} Rb8 {[%emt 0:02:43]} 14. a4 {[%emt 0:01:26]} a6 {[%emt 0:09:30]} 15. b3 {[%emt 0:05:33]} Na5 {[%emt 0:03:42]} 16. Bf4 {[%emt 0:00:38]} Re6 {[%emt 0:01:11]} 17. Qd2 {[%emt 0:00:45]} Nc6 {[%emt 0:09:42]} 18. Rad1 {[%emt 0:01:24]} Nd4 {[%emt 0:01:06]} 19. Nxd4 {[%emt 0:11:24]} cxd4 {[%emt 0:00:03]} 20. Qxd4 {[%emt 0:00:23]} Nxe4 {[%emt 0:14:12]} 21. Qa7 {[%emt 0:00:58]} Bxc3 {[%emt 0:01:13]} 22. Rxe4 {[%emt 0:05:24]} Rxe4 {[%emt 0:00:56]} 23. Qxb8 {[%emt 0:00:08]} Re8 {[%emt 0:06:26]} 24. Qxd6 {[%emt 0:01:43]} Qxd6 {[%emt 0:01:22]} 25. Rxd6 {[%emt 0:00:31]} Bf5 {[%emt 0:01:02]} 26. Bxb7 {[%emt 0:01:11]} Bxc2 {[%emt 0:01:52]} 27. Bd5 {[%emt 0:00:36]} Re1+ {[%emt 0:03:40]} 28. Kh2 {[%emt 0:00:48]} Rd1 {[%emt 0:02:28]} 29. Bh6 {[%emt 0:02:34]} Bf6 {[%emt 0:01:46]} 30. Rd7 {[%emt 0:01:09]} Bxb3 {[%emt 0:00:43]} 31. Rxf7 {[%emt 0:00:19]} Rh1+ {[%emt 0:00:05]} 32. Kxh1 {[%emt 0:00:51]} Bxd5+ {[%emt 0:00:02]} 0-1

[Event "3rd VIZAG GM-Open 2022"]
[Site "Visakapatnam"]
[Date "2022.06.14"]
[Round "7.9"]
[White "Kaustuv, Kundu"]
[Black "Nitin, S.."]
[Result "1/2-1/2"]
[ECO "D79"]
[WhiteElo "2327"]
[BlackElo "2399"]
[Annotator "TA"]
[PlyCount "25"]
[EventDate "2022.06.13"]
[EventType "swiss"]
[EventCountry "IND"]
[SourceTitle "playchess.com"]
[Source "ChessBase"]
[SourceQuality "1"]
[TimeControl "5400+30"]

{[%evp 23,25,0,6,0]} 1. Nf3 {[%emt 0:00:03]} Nf6 {[%emt 0:00:34]} 2. g3 {[%emt 0:00:05]} g6 {[%emt 0:00:06]} 3. Bg2 {[%emt 0:00:04]} Bg7 {[%emt 0:00:14]} 4. O-O {[%emt 0:00:06]} O-O {[%emt 0:00:06]} 5. c4 {[%emt 0:00:05]} c6 {[%emt 0:00:57]} 6. d4 {[%emt 0:00:05]} d5 {[%emt 0:00:20]} 7. cxd5 {[%emt 0:00:05]} cxd5 {[%emt 0:00:07]} 8. Ne5 {[%emt 0:00:05]} Ng4 {[%emt 0:00:51]} 9. Nf3 {[%emt 0:00:05]} Nf6 {[%emt 0:00:40]} 10. Ne5 {[%emt 0:00:06]} Ng4 {[%emt 0:00:08]} 11. Nf3 {[%emt 0:00:05]} Nf6 {[%emt 0:00:05] [#]} 12. Ne5 $146 {[%emt 0:00:04]} ({Predecessor:} 12. Nc3 Ne4 13. Ne5 Nxc3 14. bxc3 Nc6 15. Nxc6 bxc6 16. Qb3 Qa5 17. Qa3 Qxa3 18. Bxa3 Ba6 19. Rfb1 Rfb8 20. Bxe7 Bxe2 21. Bf1 Bxf1 22. Kxf1 Bf8 23. Bxf8 Kxf8 {½-½ (30) Mamedov,R (2673)-Kovalev,V (2634) Riga 2021}) 12... Ng4 {[%emt 0:00:05]} 13. Nf3 {[%emt 0:00:57] An uneventful encounter. D79: Fianchetto Grünfeld: Symmetrical Variation (6 0-0 c6 7 cxd5 cxd5).} 1/2-1/2

[Event "3rd VIZAG GM-Open 2022"]
[Site "Visakapatnam"]
[Date "2022.06.14"]
[Round "7.10"]
[White "Bommini Mounika Akshaya"]
[Black "Fedorov, Alexei"]
[Result "0-1"]
[ECO "C41"]
[WhiteElo "2108"]
[BlackElo "2529"]
[Annotator "RC"]
[PlyCount "94"]
[EventDate "2022.06.13"]
[EventType "swiss"]
[EventCountry "IND"]
[SourceTitle "playchess.com"]
[Source "ChessBase"]
[SourceQuality "1"]
[TimeControl "5400+30"]

1. d4 {[%emt 0:01:35]} d6 {[%emt 0:00:10]} 2. e4 {[%emt 0:00:50]} e5 {[%emt 0:00:06]} 3. Nf3 {[%emt 0:01:36]} exd4 {[%emt 0:00:11]} 4. Nxd4 {[%emt 0:00:13]} Nf6 {[%emt 0:00:06]} 5. Nc3 {[%emt 0:01:46]} Be7 {[%emt 0:00:06]} 6. Be2 {[%emt 0:01:42]} O-O {[%emt 0:00:15]} 7. O-O {[%emt 0:00:13]} Re8 {[%emt 0:01:07]} 8. f4 {[%emt 0:04:06]} Bf8 {[%emt 0:03:23]} 9. Bf3 {[%emt 0:00:17]} c5 {[%emt 0:03:45]} 10. Nde2 {[%emt 0:06:59]} Nc6 {[%emt 0:01:53]} 11. h3 {[%emt 1:16:43]} g6 {[%emt 0:07:54]} 12. Be3 {[%emt 0:00:00]} d5 {[%emt 0:07:34]} 13. Nxd5 {[%emt 0:00:00]} Nxe4 {[%emt 0:12:47]} 14. Nec3 {[%emt 0:00:00]} Nxc3 {[%emt 0:11:35]} 15. bxc3 {[%emt 0:00:00]} Bf5 {[%emt 0:00:45]} 16. Re1 {[%emt 0:00:00]} Qd6 {[%emt 0:04:31]} 17. Bf2 {[%emt 0:00:00]} Rxe1+ {[%emt 0:00:28]} 18. Bxe1 {[%emt 0:00:00]} Ne7 {[%emt 0:05:06]} 19. g4 {[%emt 0:00:00]} Nxd5 {[%emt 0:02:08]} 20. Qxd5 {[%emt 0:00:00]} Bxc2 {[%emt 0:01:08]} 21. Qxd6 {[%emt 0:00:00]} Bxd6 {[%emt 0:00:05]} 22. Bxb7 {[%emt 0:00:00]} Rb8 {[%emt 0:00:24]} 23. Bd5 {[%emt 0:00:00]} Bxf4 {[%emt 0:00:48]} 24. Bf2 {[%emt 0:00:00]} Bd6 {[%emt 0:05:57]} 25. Rc1 {[%emt 0:00:00]} Rb2 {[%emt 0:02:48]} 26. Be3 {[%emt 0:00:00]} Kg7 {[%emt 0:00:48]} 27. Rf1 {[%emt 0:00:00]} f5 {[%emt 0:02:25]} 28. Rf2 {[%emt 0:00:00]} Rb1+ {[%emt 0:00:56]} 29. Kg2 {[%emt 0:00:00]} Bd3 {[%emt 0:00:30]} 30. gxf5 {[%emt 0:00:00]} Bxf5 {[%emt 0:01:28]} 31. Rd2 {[%emt 0:00:00]} Rc1 {[%emt 0:01:18]} 32. c4 {[%emt 0:00:36]} Rc3 {[%emt 0:00:35]} 33. Kf2 {[%emt 0:01:59]} Be7 {[%emt 0:02:33]} 34. Rb2 {[%emt 0:02:36]} Bxh3 {[%emt 0:03:39]} 35. Rb7 {[%emt 0:00:48]} Kf6 {[%emt 0:00:14]} 36. Rxa7 {[%emt 0:01:05]} Bf5 {[%emt 0:03:08]} 37. Bf4 {[%emt 0:01:05]} Bd3 {[%emt 0:01:19]} 38. Ra4 {[%emt 0:04:35]} Kf5 {[%emt 0:00:50]} 39. Be3 {[%emt 0:00:39]} Rc2+ {[%emt 0:00:28]} 40. Kg1 {[%emt 0:00:27]} h5 {[%emt 0:02:54]} 41. Ra7 {[%emt 0:00:30]} Bd6 {[%emt 0:00:30]} 42. Rf7+ {[%emt 0:00:32]} Kg4 {[%emt 0:00:14]} 43. Bf3+ {[%emt 0:00:30]} Kg3 {[%emt 0:01:12]} 44. Bd5 {[%emt 0:00:31]} Bf5 {[%emt 0:02:25]} 45. Rf6 {[%emt 0:00:22]} Be5 {[%emt 0:00:33]} 46. Ra6 {[%emt 0:00:21]} Bd4 {[%emt 0:00:19]} 47. Ra3 {[%emt 0:00:31]} Rc1# {[%emt 0:00:08]} 0-1

[Event "3rd VIZAG GM-Open 2022"]
[Site "Visakapatnam"]
[Date "2022.06.14"]
[Round "7.11"]
[White "Mitrabha, Guha"]
[Black "Liyanage, Pesandu Rashmitha"]
[Result "1-0"]
[ECO "A31"]
[WhiteElo "2500"]
[BlackElo "1730"]
[Annotator "RC"]
[PlyCount "53"]
[EventDate "2022.06.13"]
[EventType "swiss"]
[EventCountry "IND"]
[SourceTitle "playchess.com"]
[Source "ChessBase"]
[SourceQuality "1"]
[TimeControl "5400+30"]

1. Nf3 {[%emt 0:06:38]} Nf6 {[%emt 0:00:39]} 2. c4 {[%emt 0:00:07]} c5 {[%emt 0:00:14]} 3. d4 {[%emt 0:00:09]} cxd4 {[%emt 0:01:13]} 4. Nxd4 {[%emt 0:00:02]} b6 {[%emt 0:00:37]} 5. Nc3 {[%emt 0:00:52]} Bb7 {[%emt 0:00:02]} 6. Bg5 {[%emt 0:00:06]} e6 {[%emt 0:01:05]} 7. Ndb5 {[%emt 0:00:42]} d6 {[%emt 0:01:43]} 8. Bf4 {[%emt 0:00:06]} e5 {[%emt 0:04:28]} 9. Bg5 {[%emt 0:00:11]} a6 {[%emt 0:02:16]} 10. Bxf6 {[%emt 0:00:08]} gxf6 {[%emt 0:00:01]} 11. Na3 {[%emt 0:00:06]} d5 {[%emt 0:11:29]} 12. cxd5 {[%emt 0:01:23]} b5 {[%emt 0:01:06]} 13. Nc2 {[%emt 0:00:03]} b4 {[%emt 0:02:47]} 14. Nxb4 {[%emt 0:00:54]} Qa5 {[%emt 0:06:45]} 15. a3 {[%emt 0:01:25]} Nd7 {[%emt 0:01:11]} 16. Nc6 {[%emt 0:00:59]} Qc7 {[%emt 0:01:49]} 17. e3 {[%emt 0:01:02]} Nb6 {[%emt 0:03:23]} 18. Rc1 {[%emt 0:00:31]} Be7 {[%emt 0:10:46]} 19. Be2 {[%emt 0:03:07]} Rg8 {[%emt 0:04:24]} 20. Ne4 {[%emt 0:01:26]} Qd7 {[%emt 0:03:30]} 21. Nxe7 {[%emt 0:01:22]} Qxe7 {[%emt 0:00:59]} 22. d6 {[%emt 0:00:07]} Qd8 {[%emt 0:00:30]} 23. Bf3 {[%emt 0:01:46]} Rb8 {[%emt 0:02:38]} 24. O-O {[%emt 0:02:34]} f5 {[%emt 0:04:06]} 25. d7+ {[%emt 0:00:25]} Kf8 {[%emt 0:01:45]} 26. Qd6+ {[%emt 0:00:01]} Qe7 {[%emt 0:00:41]} 27. Qxb8+ {[%emt 0:00:12]} 1-0

[Event "3rd VIZAG GM-Open 2022"]
[Site "Visakapatnam"]
[Date "2022.06.14"]
[Round "7.12"]
[White "Nigmatov, Ortik"]
[Black "Mayank Chakraborty"]
[Result "1-0"]
[ECO "B33"]
[WhiteElo "2463"]
[BlackElo "2015"]
[Annotator "RC"]
[PlyCount "143"]
[EventDate "2022.06.13"]
[EventType "swiss"]
[EventCountry "IND"]
[SourceTitle "playchess.com"]
[Source "ChessBase"]
[SourceQuality "1"]
[TimeControl "5400+30"]

1. e4 {[%emt 0:00:03]} c5 {[%emt 0:00:04]} 2. Nf3 {[%emt 0:00:02]} Nc6 {[%emt 0:00:06]} 3. d4 {[%emt 0:00:03]} cxd4 {[%emt 0:00:07]} 4. Nxd4 {[%emt 0:00:01]} Nf6 {[%emt 0:00:08]} 5. Nc3 {[%emt 0:00:02]} e5 {[%emt 0:00:07]} 6. Ndb5 {[%emt 0:03:30]} d6 {[%emt 0:00:07]} 7. Bg5 {[%emt 0:00:04]} a6 {[%emt 0:00:05]} 8. Na3 {[%emt 0:00:02]} b5 {[%emt 0:00:09]} 9. Nd5 {[%emt 0:00:14]} Be7 {[%emt 0:00:07]} 10. Bxf6 {[%emt 0:00:05]} Bxf6 {[%emt 0:00:05]} 11. c3 {[%emt 0:00:09]} Bg5 {[%emt 0:00:09]} 12. Nc2 {[%emt 0:00:26]} Ne7 {[%emt 0:00:14]} 13. a4 {[%emt 0:01:23]} bxa4 {[%emt 0:00:08]} 14. Ncb4 {[%emt 0:02:46]} Nxd5 {[%emt 0:00:44]} 15. Qxd5 {[%emt 0:01:55]} Be6 {[%emt 0:00:37]} 16. Qc6+ {[%emt 0:05:08]} Bd7 {[%emt 0:00:02]} 17. Qxd6 {[%emt 0:00:13]} Be7 {[%emt 0:00:01]} 18. Qxe5 {[%emt 0:03:13]} O-O {[%emt 0:00:03]} 19. Nd5 {[%emt 0:06:12]} Re8 {[%emt 0:00:01]} 20. Qd4 {[%emt 0:10:55]} Bd6 {[%emt 0:20:52]} 21. Bd3 {[%emt 0:08:01]} Re6 {[%emt 0:14:10]} 22. O-O {[%emt 0:11:30]} Rb8 {[%emt 0:12:19]} 23. Ra2 {[%emt 0:01:21]} Qf8 {[%emt 0:07:37]} 24. Bc2 {[%emt 0:03:51]} Rbe8 {[%emt 0:04:07]} 25. Qd1 {[%emt 0:09:06]} Bb5 {[%emt 0:07:22]} 26. Re1 {[%emt 0:00:06]} a3 {[%emt 0:02:03]} 27. bxa3 {[%emt 0:01:05]} Bc4 {[%emt 0:01:12]} 28. Ra1 {[%emt 0:00:07]} Bxa3 {[%emt 0:03:13]} 29. Nc7 {[%emt 0:01:56]} Rd6 {[%emt 0:01:13]} 30. Nxe8 {[%emt 0:07:07]} Rxd1 {[%emt 0:00:10]} 31. Rexd1 {[%emt 0:00:08]} Qxe8 {[%emt 0:04:18]} 32. Rxa3 {[%emt 0:00:06]} g6 {[%emt 0:00:35]} 33. Rd4 {[%emt 0:07:11]} Qb8 {[%emt 0:03:20]} 34. Ra4 {[%emt 0:02:00]} Bb5 {[%emt 0:00:20]} 35. Rab4 {[%emt 0:01:51]} Qf4 {[%emt 0:01:16]} 36. Rb1 {[%emt 0:00:42]} Qc7 {[%emt 0:00:29]} 37. Bd3 {[%emt 0:00:13]} Qxc3 {[%emt 0:00:50]} 38. Rd8+ {[%emt 0:00:07]} Kg7 {[%emt 0:00:02]} 39. Bxb5 {[%emt 0:00:07]} axb5 {[%emt 0:00:15]} 40. g3 {[%emt 0:04:10]} Qc4 {[%emt 0:02:20]} 41. e5 {[%emt 0:00:35]} Qe4 {[%emt 0:00:35]} 42. Rdd1 {[%emt 0:00:54]} Qxe5 {[%emt 0:00:08]} 43. Rb4 {[%emt 0:00:06]} h5 {[%emt 0:00:25]} 44. Rdb1 {[%emt 0:00:25]} Kh6 {[%emt 0:00:43]} 45. Rxb5 {[%emt 0:00:32]} Qd4 {[%emt 0:00:16]} 46. h4 {[%emt 0:00:10]} Kg7 {[%emt 0:02:23]} 47. Rb7 {[%emt 0:00:57]} Qe4 {[%emt 0:00:43]} 48. R1b4 {[%emt 0:00:39]} Qd5 {[%emt 0:02:16]} 49. Re7 {[%emt 0:00:32]} g5 {[%emt 0:06:32]} 50. hxg5 {[%emt 0:00:56]} Qxg5 {[%emt 0:00:18]} 51. Rbb7 {[%emt 0:00:14]} Qc1+ {[%emt 0:00:52]} 52. Kh2 {[%emt 0:00:11]} h4 {[%emt 0:01:09]} 53. Rxf7+ {[%emt 0:00:05]} Kg6 {[%emt 0:00:20]} 54. Rg7+ {[%emt 0:00:11]} Kf6 {[%emt 0:00:21]} 55. Rbf7+ {[%emt 0:00:19]} Ke6 {[%emt 0:00:31]} 56. gxh4 {[%emt 0:01:20]} Qc4 {[%emt 0:09:51]} 57. Rh7 {[%emt 0:00:39]} Qg4 {[%emt 0:00:00]} 58. Rf8 {[%emt 0:01:14]} Kd5 {[%emt 0:00:00]} 59. Rf6 {[%emt 0:01:18]} Ke5 {[%emt 0:00:00]} 60. Rhh6 {[%emt 0:00:09]} Qg7 {[%emt 0:00:00]} 61. Re6+ {[%emt 0:01:56]} Kd4 {[%emt 0:00:00]} 62. Rhg6 {[%emt 0:00:41]} Qc7+ {[%emt 0:00:00]} 63. Kg1 {[%emt 0:00:43]} Qf4 {[%emt 0:00:00]} 64. h5 {[%emt 0:00:33]} Qf5 {[%emt 0:00:00]} 65. h6 {[%emt 0:00:18]} Qb1+ {[%emt 0:00:00]} 66. Kg2 {[%emt 0:00:26]} Qb5 {[%emt 0:00:00]} 67. Rd6+ {[%emt 0:01:38]} Ke4 {[%emt 0:00:00]} 68. h7 {[%emt 0:01:04]} Qh5 {[%emt 0:00:00]} 69. Rge6+ {[%emt 0:00:16]} Kf4 {[%emt 0:00:00]} 70. Rd4+ {[%emt 0:00:04]} Kf5 {[%emt 0:00:00]} 71. Rd5+ {[%emt 0:00:05]} Kf4 {[%emt 0:00:00]} 72. Rxh5 {[%emt 0:00:06]} 1-0

[Event "3rd VIZAG GM-Open 2022"]
[Site "Visakapatnam"]
[Date "2022.06.14"]
[Round "7.13"]
[White "Aditya Varun Gampa"]
[Black "Hossain, Enamul"]
[Result "0-1"]
[ECO "B48"]
[WhiteElo "1836"]
[BlackElo "2413"]
[Annotator "RC"]
[PlyCount "58"]
[EventDate "2022.06.13"]
[EventType "swiss"]
[EventCountry "IND"]
[SourceTitle "playchess.com"]
[Source "ChessBase"]
[SourceQuality "1"]
[TimeControl "5400+30"]

1. e4 {[%emt 1:31:00]} c5 {[%emt 1:31:00]} 2. Nf3 {[%emt 0:00:30]} e6 {[%emt 0:00:30]} 3. d4 {[%emt 0:00:30]} cxd4 {[%emt 0:00:30]} 4. Nxd4 {[%emt 0:00:30]} Nc6 {[%emt 0:00:30]} 5. Nc3 {[%emt 0:00:30]} Qc7 {[%emt 0:00:30]} 6. Be3 {[%emt 0:00:30]} a6 {[%emt 0:00:30]} 7. a3 {[%emt 0:00:30]} b5 {[%emt 0:00:30]} 8. Nxc6 {[%emt 0:00:30]} Qxc6 {[%emt 0:00:30]} 9. Bd3 {[%emt 0:00:30]} Bb7 {[%emt 0:00:30]} 10. Qe2 {[%emt 0:00:30]} Rc8 {[%emt 0:00:30]} 11. f3 {[%emt 0:00:30]} Bc5 {[%emt 0:00:30]} 12. Bxc5 {[%emt 0:00:30]} Qxc5 {[%emt 0:00:30]} 13. e5 {[%emt 0:00:30]} Ne7 {[%emt 0:00:30]} 14. O-O-O {[%emt 0:00:30]} Bc6 {[%emt 0:00:30]} 15. f4 {[%emt 0:00:30]} b4 {[%emt 0:00:30]} 16. axb4 {[%emt 0:00:30]} Qxb4 {[%emt 0:00:30]} 17. Ne4 {[%emt 0:00:30]} O-O {[%emt 0:00:30]} 18. c3 {[%emt 0:00:30]} Qa5 {[%emt 0:00:30]} 19. Nd6 {[%emt 0:00:30]} Qa1+ {[%emt 0:00:30]} 20. Bb1 {[%emt 0:00:30]} Rb8 {[%emt 0:00:30]} 21. Qc2 {[%emt 0:00:30]} g6 {[%emt 0:00:30]} 22. Rd4 {[%emt 0:00:30]} Nf5 {[%emt 0:00:30]} 23. Nxf5 {[%emt 0:00:30]} exf5 {[%emt 0:00:30]} 24. Re1 {[%emt 0:00:30]} Rfc8 {[%emt 0:00:30]} 25. g4 {[%emt 0:00:30]} Bb5 {[%emt 0:00:30]} 26. gxf5 {[%emt 0:00:30]} Rc4 {[%emt 0:00:30]} 27. fxg6 {[%emt 0:00:30]} Ba4 {[%emt 0:00:30]} 28. gxf7+ {[%emt 0:00:30]} Kf8 {[%emt 0:00:30]} 29. Qf2 {[%emt 0:00:30]} Rxb2 {[%emt 0:00:30]} 0-1